{"text_format":"1","workbook":"xlsx","n_sheets":1,"sheets":["Sheet1"],"not_rendered":{"charts":0,"images":0,"macros":1,"external_links":0,"defined_names":25,"comments":0,"pivot_tables":0},"unopened":[],"bounds":{"document_bytes":16777216,"sheet_cells":100000,"rows_first":2000,"rows_last":500,"rows_between":2000,"halvings":0,"cell_chars":16384,"cell_head_chars":4096},"cells_cut":0,"cells_raw":0,"read":"whole","date_system":"1900"}

{"sheet":"Sheet1","index":0,"n_rows":139,"n_cols":8,"rows_kept":139,"cut":false,"hidden":false,"merged":[]}
[null,null,null,null,null,null,"Customer Description","Select True for bold and false for nonbold"]
[null,null,null,null,null,null,"Srinivasa Colour & Chemical Corp.",{"$f":"isbold(G2)","v":true}]
[null,null,null,null,null,null,"Trades Combine",{"$f":"isbold(G3)","v":false}]
[null,null,null,null,null,null,"JD Sales Corporation",false]
[null,null,null,null,null,null,"Srinivasa Colour & Chemical Corp.",false]
[null,null,null,null,null,null,"Trades Combine",false]
[null,null,null,null,null,null,"AJ Dyechem Company",false]
[null,null,null,null,null,null,"SB.Shah And Co.(P) Limited",false]
[null,null,null,null,null,null,"Tusker Dye Chem Pvt Ltd",false]
[null,null,null,null,null,null,"Kapur Kemicals",false]
[null,null,null,null,null,null,"JD Sales Corporation",true]
[null,null,null,null,null,null,"Grasim Bhiwani Textiles Ltd",false]
[null,null,null,null,null,null,"Tusker Dye Chem Pvt Ltd",true]
[null,null,null,null,null,null,"Tusker Dye Chem Pvt Ltd",false]
[null,null,null,null,null,null,"Tusker Dye Chem Pvt Ltd",false]
[null,null,null,null,null,null,"Tusker Dye Chem Pvt Ltd",false]
[null,null,null,null,null,null,"C M S Impex (India) Pvt Ltd",false]
[null,null,null,null,null,null,"Misgo Sales Pvt Ltd",true]
[null,null,null,null,null,null,"Grasim Bhiwani Textiles Ltd",false]
[null,null,null,null,null,null,"Tusker Dye Chem Pvt Ltd",false]
[null,null,null,null,null,null,"Dalwarilal Gupta & Sons",false]
[null,null,null,null,null,null,"Srinivasa Colour & Chemical Corp.",false]
[null,null,null,null,null,null,"AJ Dyechem Company",true]
[null,null,null,null,null,null,"D R Dyechem (India) Pvt Ltd",false]
[null,null,null,null,null,null,"Tusker Dye Chem Pvt Ltd",false]
[null,null,null,null,null,null,"Srinivasa Colour & Chemical Corp.",false]
[null,null,null,null,null,null,"Trades Combine",false]
[null,null,null,null,null,null,"Tusker Dye Chem Pvt Ltd",false]
[null,null,null,null,null,null,"JD Sales Corporation",false]
[null,null,null,null,null,null,"Srinivasa Colour & Chemical Corp.",false]
[null,null,null,null,null,null,"AJ Dyechem Company",false]
[null,null,null,null,null,null,"Tusker Dye Chem Pvt Ltd",false]
[null,null,null,null,null,null,"Heeralall And Sons",false]
[null,null,null,null,null,null,"Grasim Bhiwani Textiles Ltd",false]
[null,null,null,null,null,null,"Tusker Dye Chem Pvt Ltd",false]
[null,null,null,null,null,null,"JD Sales Corporation",false]
[null,null,null,null,null,null,"Trades Combine",false]
[null,null,null,null,null,null,"Tusker Dye Chem Pvt Ltd",false]
[null,null,null,null,null,null,"Dalwarilal Gupta & Sons",false]
[null,null,null,null,null,null,"Srinivasa Colour & Chemical Corp.",false]
[null,null,null,null,null,null,"AJ Dyechem Company",false]
[null,null,null,null,null,null,"SB.Shah And Co.(P) Limited",false]
[null,null,null,null,null,null,"Grasim Bhiwani Textiles Ltd",false]
[null,null,null,null,null,null,"SB.Shah And Co.P Limited",false]
[null,null,null,null,null,null,"SB.Shah And Co.(P) Limited",false]
[null,null,null,null,null,null,"Tusker Dye Chem Pvt Ltd",false]
[null,null,null,null,null,null,"Srinivasa Colour & Chemical Corp.",false]
[null,null,null,null,null,null,"Trades Combine",false]
[null,null,null,null,null,null,"Tusker Dye Chem Pvt Ltd",false]
[null,null,null,null,null,null,"Srinivasa Colour & Chemical Corp.",false]
[null,null,null,null,null,null,"Tusker Dye Chem Pvt Ltd",false]
[null,null,null,null,null,null,"Srinivasa Colour & Chemical Corp.",false]
[null,null,null,null,null,null,"Trades Combine",false]
[null,null,null,null,null,null,"D R Dyechem (India) Pvt Ltd",false]
[null,null,null,null,null,null,"Dalwarilal Gupta & Sons",false]
[null,null,null,null,null,null,"Trades Combine",false]
[null,null,null,null,null,null,"AJ Dyechem Company",false]
[null,null,null,null,null,null,"Tusker Dye Chem Pvt Ltd",false]
[null,null,null,null,null,null,"Heeralall And Sons",false]
[null,null,null,null,null,null,"Grasim Bhiwani Textiles Ltd",false]
[null,null,null,null,null,null,"Tex \"n\" Nets",false]
[null,null,null,null,null,null,"KT Associates",false]
[null,null,null,null,null,null,"JD Sales Corporation",false]
[null,null,null,null,null,null,"Trades Combine",false]
[null,null,null,null,null,null,"KT Associates",false]
[null,null,null,null,null,null,"Grasim Bhiwani Textiles Ltd",false]
[null,null,null,null,null,null,"Grasim Bhiwani Textiles Ltd",{"$f":"isbold(G67)","v":false}]
[null,null,null,null,null,null,"Tusker Dye Chem Pvt Ltd",false]
[null,null,null,null,null,null,"JD Sales Corporation",false]
[null,null,null,null,null,null,"Srinivasa Colour & Chemical Corp.",false]
[null,null,null,null,null,null,"Trades Combine",false]
[null,null,null,null,null,null,"AJ Dyechem Company",false]
[null,null,null,null,null,null,"SB.Shah And Co.(P) Limited",false]
[null,null,null,null,null,null,"Tusker Dye Chem Pvt Ltd",false]
[null,null,null,null,null,null,"Grasim Bhiwani Textiles Ltd",false]
[null,null,null,null,null,null,"Srinivasa Colour & Chemical Corp.",false]
[null,null,null,null,null,null,"Trades Combine",false]
[null,null,null,null,null,null,"Grasim Bhiwani Textiles Ltd",false]
[null,null,null,null,null,null,"Grasim Bhiwani Textiles Ltd",false]
[null,null,null,null,null,null,"Trades Combine",false]
[null,null,null,null,null,null,"Srinivasa Colour & Chemical Corp.",false]
[null,null,null,null,null,null,"Srinivasa Colour & Chemical Corp.",false]
[null,null,null,null,null,null,"JD Sales Corporation",false]
[null,null,null,null,null,null,"Srinivasa Colour & Chemical Corp.",false]
[null,null,null,null,null,null,"Trades Combine",false]
[null,null,null,null,null,null,"Dalwarilal Gupta & Sons",false]
[null,null,null,null,null,null,"Tusker Dye Chem Pvt Ltd",false]
[null,null,null,null,null,null,"JD Sales Corporation",false]
[null,null,null,null,null,null,"Dalwarilal Gupta & Sons",false]
[null,null,null,null,null,null,"Srinivasa Colour & Chemical Corp.",false]
[null,null,null,null,null,null,"Trades Combine",false]
[null,null,null,null,null,null,"AJ Dyechem Company",false]
[null,null,null,null,null,null,"SB.Shah And Co.(P) Limited",false]
[null,null,null,null,null,null,"Tusker Dye Chem Pvt Ltd",false]
[null,null,null,null,null,null,"C M S Impex (India) Pvt Ltd",false]
[null,null,null,null,null,null,"KT Associates",false]
[null,null,null,null,null,null,"Heeralall And Sons",false]
[null,null,null,null,null,null,"Grasim Bhiwani Textiles Ltd",false]
[null,null,null,null,null,null,"JD Sales Corp",false]
[null,null,null,null,null,null,"Grasim Bhiwani Textiles Ltd",false]
[null,null,null,null,null,null,"Trades Combine",false]
[null,null,null,null,null,null,"Grasim Bhiwani Textiles Ltd",false]
[null,null,null,null,null,null,"Tusker Dye Chem Pvt Ltd",false]
[null,null,null,null,null,null,"JD Sales Corporation",false]
[null,null,null,null,null,null,"Srinivasa Colour & Chemical Corp.",false]
[null,null,null,null,null,null,"D R Dyechem (India) Pvt Ltd",false]
[null,null,null,null,null,null,"Tusker Dye Chem Pvt Ltd",false]
[null,null,null,null,null,null,"KT Associates",false]
[null,null,null,null,null,null,"Heeralall And Sons",false]
[null,null,null,null,null,null,"JD Sales Corp",false]
[null,null,null,null,null,null,"Srinivasa Colour & Chemical Corp.",false]
[null,null,null,null,null,null,"Trades Combine",false]
[null,null,null,null,null,null,"JD Sales Corporation",false]
[null,null,null,null,null,null,"Grasim Bhiwani Textiles Ltd",false]
[null,null,null,null,null,null,"Tusker Dye Chem Pvt Ltd",false]
[null,null,null,null,null,null,"JD Sales Corporation",false]
[null,null,null,null,null,null,"Dalwarilal Gupta & Sons",false]
[null,null,null,null,null,null,"Srinivasa Colour & Chemical Corp.",false]
[null,null,null,null,null,null,"Trades Combine",false]
[null,null,null,null,null,null,"AJ Dyechem Company",false]
[null,null,null,null,null,null,"SB.Shah And Co.(P) Limited",false]
[null,null,null,null,null,null,"D R Dyechem (India) Pvt Ltd",false]
[null,null,null,null,null,null,"Tusker Dye Chem Pvt Ltd",false]
[null,null,null,null,null,null,"C M S Impex (India) Pvt Ltd",false]
[null,null,null,null,null,null,"Kapur Kemicals",false]
[null,null,null,null,null,null,"JD Sales Corporation",false]
[null,null,null,null,null,null,"KT Associates",false]
[null,null,null,null,null,null,"Grasim Bhiwani Textiles Ltd",false]
[null,null,null,null,null,null,"Tusker Dye Chem Pvt Ltd",false]
[null,null,null,null,null,null,"JD Sales Corporation",false]
[null,null,null,null,null,null,"Dalwarilal Gupta & Sons",{"$f":"isbold(G131)","v":false}]
[null,null,null,null,null,null,"Srinivasa Colour & Chemical Corp.",false]
[null,null,null,null,null,null,"Trades Combine",false]
[null,null,null,null,null,null,"AJ Dyechem Company",false]
[null,null,null,null,null,null,"SB.Shah And Co.(P) Limited",false]
[null,null,null,null,null,null,"Tusker Dye Chem Pvt Ltd",false]
[null,null,null,null,null,null,"C M S Impex (India) Pvt Ltd",false]
[null,null,null,null,null,null,"KT Associates",false]
[null,null,null,null,null,null,"Grasim Bhiwani Textiles Ltd",false]